[Event "Salamanca Festival Masters 2018"]
[Site "Salamanca"]
[Date "2018.10.27"]
[Round "6"]
[White "Matnadze, Ana"]
[Black "Calzetta, Mónica"]
[Result "1-0"]
[ECO "A37"]
[WhiteElo "2379"]
[BlackElo "2235"]
[Annotator "NA"]
[PlyCount "75"]
[EventDate "2018.10.24"]
[EventType "tourn"]
[EventCountry "ESP"]
[SourceTitle "playchess.com"]
[Source "ChessBase"]
[SourceQuality "1"]
[TimeControl "2400+5"]

1. Nf3 {[%emt 0:00:00]} c5 {[%emt 0:00:15]} 2. c4 {[%emt 0:00:14]} g6 {[%emt 0:00:18]} 3. Nc3 {[%emt 0:00:07]} Nc6 {[%emt 0:00:42]} 4. g3 {[%emt 0:00:03]} Bg7 {[%emt 0:00:07]} 5. Bg2 {[%emt 0:00:06]} d6 {[%emt 0:02:34]} 6. O-O {[%emt 0:00:15]} e6 {[%emt 0:00:02]} 7. e3 {[%emt 0:01:30]} Nge7 {[%emt 0:00:14]} 8. d4 {[%emt 0:00:28]} O-O {[%emt 0:01:52]} 9. d5 {[%emt 0:04:00]} Na5 {[%emt 0:00:21]} 10. Nd2 {[%emt 0:00:31]} Rb8 {[%emt 0:00:41]} 11. a4 {[%emt 0:00:46]} b6 {[%emt 0:02:49]} 12. Qc2 {[%emt 0:02:07]} Ba6 {[%emt 0:03:07]} 13. Nb5 {[%emt 0:01:27]} exd5 {[%emt 0:00:34]} 14. cxd5 {[%emt 0:00:07]} Qd7 {[%emt 0:01:40]} 15. Nc4 {[%emt 0:00:11]} Nxc4 {[%emt 0:00:53]} 16. Qxc4 {[%emt 0:00:03]} Bb7 {[%emt 0:06:30]} 17. Nxa7 {[%emt 0:02:46]} Nxd5 {[%emt 0:00:11]} 18. Bxd5 {[%emt 0:00:43]} Bxd5 {[%emt 0:00:03]} 19. Qxd5 {[%emt 0:00:10]} Qxa7 {[%emt 0:00:01]} 20. Qxd6 {[%emt 0:00:22]} Rfd8 {[%emt 0:00:18]} 21. Qc6 {[%emt 0:00:38]} h5 {[%emt 0:08:48]} 22. Ra3 {[%emt 0:00:59]} Qa6 {[%emt 0:01:37]} 23. Kg2 {[%emt 0:05:18]} h4 {[%emt 0:00:26]} 24. gxh4 {[%emt 0:00:30]} c4 {[%emt 0:02:41]} 25. Qf3 {[%emt 0:02:07]} Rd6 {[%emt 0:00:46]} 26. e4 {[%emt 0:02:15]} Rbd8 {[%emt 0:00:02]} 27. Re3 {[%emt 0:02:39]} Qxa4 {[%emt 0:00:12]} 28. e5 {[%emt 0:01:15]} Re6 {[%emt 0:00:19]} 29. Ra3 {[%emt 0:02:51]} Qb5 {[%emt 0:00:05]} 30. Ra7 {[%emt 0:01:30]} Qe8 {[%emt 0:00:25]} 31. Bg5 {[%emt 0:00:42]} Rc8 {[%emt 0:00:22]} 32. Rd1 {[%emt 0:02:33]} Bxe5 {[%emt 0:00:08]} 33. Rdd7 {[%emt 0:00:16]} f5 {[%emt 0:03:33]} 34. Qd5 {[%emt 0:00:10]} Bb8 {[%emt 0:00:08]} 35. Rg7+ {[%emt 0:00:51]} Kh8 {[%emt 0:00:04]} 36. Rh7+ {[%emt 0:00:07]} Kg8 {[%emt 0:00:01]} 37. Rag7+ {[%emt 0:00:11]} Kf8 {[%emt 0:00:01]} 38. Bh6 {[%emt 0:00:37]} 1-0

[Event "Salamanca Festival Masters 2018"]
[Site "Salamanca"]
[Date "2018.10.27"]
[Round "7"]
[White "Atalik, Ekaterina"]
[Black "Santos Ruiz, Miguel"]
[Result "0-1"]
[ECO "E20"]
[WhiteElo "2420"]
[BlackElo "2327"]
[Annotator "NA"]
[PlyCount "118"]
[EventDate "2018.10.24"]
[EventType "tourn"]
[EventCountry "ESP"]
[SourceTitle "playchess.com"]
[Source "ChessBase"]
[SourceQuality "1"]
[TimeControl "2400+5"]

1. d4 {[%emt 0:00:00]} Nf6 {[%emt 0:00:00]} 2. c4 {[%emt 0:00:02]} e6 {[%emt 0:00:00]} 3. Nc3 {[%emt 0:00:03]} Bb4 {[%emt 0:00:00]} 4. g3 {[%emt 0:00:03]} O-O {[%emt 0:00:11]} 5. Bg2 {[%emt 0:00:17]} d5 {[%emt 0:00:01]} 6. Nf3 {[%emt 0:00:06]} dxc4 {[%emt 0:00:02]} 7. O-O {[%emt 0:00:14]} Nc6 {[%emt 0:00:02]} 8. Qa4 {[%emt 0:00:10]} Nd5 {[%emt 0:00:02]} 9. Qc2 {[%emt 0:00:11]} Be7 {[%emt 0:00:03]} 10. Rd1 {[%emt 0:00:31]} Ncb4 {[%emt 0:00:02]} 11. Qb1 {[%emt 0:01:30]} c5 {[%emt 0:00:03]} 12. a3 {[%emt 0:07:54]} Nxc3 {[%emt 0:04:24]} 13. bxc3 {[%emt 0:00:02]} Nd5 {[%emt 0:00:02]} 14. Bd2 {[%emt 0:01:29]} Qa5 {[%emt 0:05:44]} 15. dxc5 {[%emt 0:05:29]} Bxc5 {[%emt 0:03:01]} 16. e4 {[%emt 0:00:12]} Ne7 {[%emt 0:01:07]} 17. e5 {[%emt 0:02:25]} Bd7 {[%emt 0:05:38]} 18. Ng5 {[%emt 0:00:53]} Ng6 {[%emt 0:00:03]} 19. Qxb7 {[%emt 0:01:04]} Ba4 {[%emt 0:02:52]} 20. Rdb1 {[%emt 0:01:37]} Rad8 {[%emt 0:00:26]} 21. Be1 {[%emt 0:00:13]} Bb6 {[%emt 0:01:32]} 22. Qe4 {[%emt 0:00:12]} Qxe5 {[%emt 0:04:49]} 23. Qxc4 {[%emt 0:00:11]} Bc2 {[%emt 0:00:02]} 24. Nf3 {[%emt 0:01:24]} Qf5 {[%emt 0:00:02]} 25. Rc1 {[%emt 0:00:36]} Bd3 {[%emt 0:00:06]} 26. Qa2 {[%emt 0:00:37]} e5 {[%emt 0:00:37]} 27. a4 {[%emt 0:01:31]} Be4 {[%emt 0:01:41]} 28. Qe2 {[%emt 0:00:07]} Bd3 {[%emt 0:00:01]} 29. Qa2 {[%emt 0:00:13]} Rd6 {[%emt 0:00:51]} 30. a5 {[%emt 0:00:12]} Bc5 {[%emt 0:00:01]} 31. Nd2 {[%emt 0:00:23]} e4 {[%emt 0:01:23]} 32. Nb3 {[%emt 0:00:29]} Nf4 {[%emt 0:01:17]} 33. Nxc5 {[%emt 0:00:59]} Ne2+ {[%emt 0:00:22]} 34. Kh1 {[%emt 0:00:02]} Nxc1 {[%emt 0:00:02]} 35. Qa3 {[%emt 0:00:07]} Rc6 {[%emt 0:00:17]} 36. Nb7 {[%emt 0:01:53]} Ne2 {[%emt 0:00:30]} 37. Qe7 {[%emt 0:01:06]} Nxc3 {[%emt 0:01:17]} 38. Qb4 {[%emt 0:03:39]} Nd5 {[%emt 0:00:48]} 39. Qd4 {[%emt 0:00:01]} Qc8 {[%emt 0:00:36]} 40. Qxd5 {[%emt 0:00:41]} Qxb7 {[%emt 0:00:01]} 41. Qd4 {[%emt 0:01:31]} Qe7 {[%emt 0:01:05]} 42. h4 {[%emt 0:00:07]} Qf6 {[%emt 0:00:04]} 43. Qxf6 {[%emt 0:00:07]} Rxf6 {[%emt 0:00:01]} 44. Bd2 {[%emt 0:00:15]} Rb8 {[%emt 0:00:09]} 45. Be3 {[%emt 0:00:02]} Ra6 {[%emt 0:00:02]} 46. Ra4 {[%emt 0:00:19]} h6 {[%emt 0:00:17]} 47. Kh2 {[%emt 0:00:15]} Rb5 {[%emt 0:00:03]} 48. Bd2 {[%emt 0:00:20]} Rf6 {[%emt 0:00:17]} 49. Be3 {[%emt 0:00:07]} a6 {[%emt 0:00:01]} 50. Bh3 {[%emt 0:00:09]} Rb2 {[%emt 0:00:06]} 51. Kg2 {[%emt 0:00:52]} Rb1 {[%emt 0:00:11]} 52. Bg4 {[%emt 0:00:12]} Rd6 {[%emt 0:00:18]} 53. h5 {[%emt 0:00:07]} Rd5 {[%emt 0:00:02]} 54. Ra3 {[%emt 0:00:16]} f5 {[%emt 0:00:02]} 55. Bh3 {[%emt 0:00:04]} Be2 {[%emt 0:00:02]} 56. Kh2 {[%emt 0:00:05]} Bf3 {[%emt 0:00:03]} 57. Bg2 {[%emt 0:00:02]} Rdd1 {[%emt 0:00:02]} 58. Bxf3 {[%emt 0:00:03]} exf3 {[%emt 0:00:01]} 59. g4 {[%emt 0:00:01]} Rg1 {[%emt 0:00:04]} 0-1